fUSD/lending_fUSD_20260605
["ID","MTS","AMOUNT","RATE_DAILY","PERIOD"]
[424218936,1780671055000,-300.0,0.00031453,2]
[424218934,1780671055000,-852.12081563,0.00031442,2]
[424218931,1780671055000,-848.4527391,0.00031442,2]
[424218935,1780671055000,-885.56821272,0.00031442,2]
[424218940,1780671055000,-717.0,0.00031538,30]
[424218941,1780671055000,-684.0,0.00031538,30]
[424218943,1780671055000,-2221.0,0.00031538,30]
[424218929,1780671055000,-525.0,0.00031409,6]
[424218933,1780671055000,-882.95004628,0.00031442,2]
[424218942,1780671055000,-1604.0,0.00031538,30]
[424218956,1780671055000,-12898.39,0.00031941,14]
[424218946,1780671055000,-163.0,0.00031644,14]
[424218947,1780671055000,-151.0,0.0003165,4]
[424218952,1780671055000,-833.92535152,0.00031813,2]
[424218953,1780671055000,-1071.78,0.00031867,30]
[424218949,1780671055000,-300.0,0.00031757,2]
[424218951,1780671055000,-668.65185756,0.00031813,2]
[424218954,1780671055000,-300.0,0.00031921,2]
[424218950,1780671055000,-1239.18,0.000318,7]
[424218948,1780671055000,-1071.78,0.0003165,30]
[424218955,1780671055000,-300.0,0.00031926,2]
[424218964,1780671055000,-910.35383359,0.0003198,2]
[424218957,1780671055000,-525.0,0.00031943,7]
[424218939,1780671055000,-382.0,0.00031538,30]
[424218945,1780671055000,-150.0,0.00031644,2]
[424218938,1780671055000,-195.0,0.00031507,30]
[424218916,1780671055000,-173.19568044,0.00031366,30]
[424218924,1780671055000,-917.0,0.00031382,30]
[424218965,1780671055000,-1695.27939645,0.0003198,2]
[424218903,1780671055000,-1071.78,0.00031217,30]
[424218901,1780671055000,-1000.0,0.000312,7]
[424218900,1780671055000,-213.297439,0.000312,4]
[424218904,1780671055000,-200.0,0.00031269,2]
[424218902,1780671055000,-287.60963717,0.00031206,2]
[424218905,1780671055000,-2000.0,0.0003132,2]
[424218907,1780671055000,-361.75,0.0003132,2]
[424218906,1780671055000,-2000.0,0.0003132,2]
[424218911,1780671055000,-182.38498589,0.00031366,30]
[424218909,1780671055000,-205.47336909,0.00031366,30]
[424218908,1780671055000,-300.0,0.00031339,2]
[424218915,1780671055000,-210.62881588,0.00031366,30]
[424218930,1780671055000,-1071.78,0.00031433,30]
[424218913,1780671055000,-175.73813907,0.00031366,30]
[424218910,1780671055000,-273.96449212,0.00031366,30]
[424218914,1780671055000,-171.22551541,0.00031366,30]
[424218917,1780671055000,-910.0,0.00031373,30]
[424218920,1780671055000,-463.0,0.00031373,30]
[424218919,1780671055000,-3475.0,0.00031373,30]
[424218918,1780671055000,-535.0,0.00031373,30]
[424218923,1780671055000,-2000.0,0.00031382,22]
[424218922,1780671055000,-3786.0,0.00031373,30]
[424218921,1780671055000,-704.0,0.00031373,30]
[424218925,1780671055000,-1918.0,0.00031382,30]
[424218928,1780671055000,-2000.0,0.00031408,6]
[424218926,1780671055000,-461.0,0.00031382,30]
[424218927,1780671055000,-2000.0,0.00031405,7]
[424218912,1780671055000,-243.17998119,0.00031366,30]
[424218966,1780671055000,-1189.51537383,0.00031999,2]
[424218978,1780671055000,-433.47194799,0.00032,120]
[424218963,1780671055000,-1599.16858476,0.0003198,2]
[424218994,1780671055000,-2000.0,0.00032,2]
[424218995,1780671055000,-215.77576141,0.00032,30]
[424218996,1780671055000,-190.84078346,0.00032,120]
[424219004,1780671055000,-160.0,0.000322,7]
[424219002,1780671055000,-354.8,0.00032192,2]
[424218999,1780671055000,-1071.78,0.00032083,30]
[424219000,1780671055000,-1314.09,0.000321,7]
[424219003,1780671055000,-160.0,0.000322,7]
[424218998,1780671055000,-300.0,0.00032078,2]
[424219001,1780671055000,-2482.56772425,0.00032136,2]
[424219005,1780671055000,-2000.0,0.00032209,5]
[424219007,1780671055000,-300.0,0.00032218,2]
[424219016,1780671055000,-944.17347077,0.00032321,2]
[424218997,1780671055000,-700.0,0.00032,2]
[424219017,1780671055000,-1062.68185526,0.00032321,2]
[424219015,1780671055000,-1022.54497875,0.00032321,2]
[424219011,1780671055000,-1071.78,0.000323,30]
[424219006,1780671055000,-3994.5,0.0003221,5]
[424219009,1780671055000,-9850.08608946,0.00032253,2]
[424219010,1780671055000,-300.0,0.0003228,2]
[424219012,1780671055000,-1018.14328692,0.00032321,2]
[424219013,1780671055000,-1034.43607063,0.00032321,2]
[424219018,1780671055000,-300.0,0.00032348,2]
[424219019,1780671055000,-910.0,0.00032373,30]
[424219023,1780671055000,-704.0,0.00032373,30]
[424219021,1780671055000,-3475.0,0.00032373,30]
[424219020,1780671055000,-535.0,0.00032373,30]
[424218961,1780671055000,-1462.08203624,0.0003198,2]
[424219014,1780671055000,-1059.54005554,0.00032321,2]
[424218993,1780671055000,-161.14,0.00032,120]
[424219008,1780671055000,-305.61241067,0.0003225,7]
[424218989,1780671055000,-579.65091334,0.00032,120]
[424218990,1780671055000,-1327.85688603,0.00032,120]
[424218958,1780671055000,-287.60963717,0.00031951,2]
[424218960,1780671055000,-1131.37276361,0.0003198,2]
[424218962,1780671055000,-1851.735743,0.0003198,2]
[424218959,1780671055000,-200.0,0.00031971,2]
[424218967,1780671055000,-1137.3372072,0.00031999,2]
[424218973,1780671055000,-311.41773744,0.00032,120]
[424218968,1780671055000,-300.0,0.00032,2]
[424218977,1780671055000,-1910.38886028,0.00032,120]
[424218972,1780671055000,-320.66968773,0.00032,120]
[424218971,1780671055000,-430.3749138,0.00032,120]
[424219022,1780671055000,-463.0,0.00032373,30]
[424218975,1780671055000,-306.50544473,0.00032,120]
[424218970,1780671055000,-240.0,0.00032,120]
[424218969,1780671055000,-150.0,0.00032,120]
[424218985,1780671055000,-1380.87818188,0.00032,120]
[424218988,1780671055000,-278.51312383,0.00032,120]
[424218987,1780671055000,-860.34177745,0.00032,120]
[424218983,1780671055000,-323.74083089,0.00032,120]
[424218984,1780671055000,-1492.94465785,0.00032,120]
[424218979,1780671055000,-205.23463841,0.00032,120]
[424218982,1780671055000,-441.83431517,0.00032,120]
[424218980,1780671055000,-890.90734959,0.00032,120]
[424218991,1780671055000,-266.02175358,0.00032,120]
[424218981,1780671055000,-820.72142025,0.00032,120]
[424218976,1780671055000,-1451.60412161,0.00032,120]
[424218974,1780671055000,-515.14960472,0.00032,120]
[424218992,1780671055000,-353.22116195,0.00032,120]
[424218986,1780671055000,-240.54220588,0.00032,120]
[424219047,1780671056000,-500.0,0.00032603,10]
[424219048,1780671056000,-500.0,0.00032603,10]
[424219044,1780671056000,-500.0,0.00032603,10]
[424219059,1780671056000,-500.0,0.00032603,10]
[424219046,1780671056000,-1302.0,0.00032603,10]
[424219040,1780671056000,-300.0,0.00032582,2]
[424219045,1780671056000,-500.0,0.00032603,10]
[424219050,1780671056000,-500.0,0.00032603,10]
[424219055,1780671056000,-1302.0,0.00032603,10]
[424219053,1780671056000,-500.0,0.00032603,10]
[424219049,1780671056000,-1302.0,0.00032603,10]
[424219052,1780671056000,-1302.0,0.00032603,10]
[424219054,1780671056000,-500.0,0.00032603,10]
[424219057,1780671056000,-500.0,0.00032603,10]
[424219042,1780671056000,-500.0,0.00032603,10]
[424219051,1780671056000,-500.0,0.00032603,10]
[424219043,1780671056000,-1302.0,0.00032603,10]
[424219027,1780671056000,-461.0,0.00032382,30]
[424219039,1780671056000,-150.0,0.00032562,2]
[424219062,1780671056000,-500.0,0.00032603,10]
[424219024,1780671056000,-3786.0,0.00032373,30]
[424219028,1780671056000,-300.0,0.00032383,2]
[424219029,1780671056000,-909.58,0.000324,7]
[424219025,1780671056000,-917.0,0.00032382,30]
[424219026,1780671056000,-1918.0,0.00032382,30]
[424219031,1780671056000,-1239.18,0.000324,7]
[424219030,1780671056000,-1051.67,0.000324,14]
[424219032,1780671056000,-300.0,0.00032471,2]
[424219033,1780671056000,-525.0,0.00032477,7]
[424219035,1780671056000,-717.0,0.00032538,30]
[424219034,1780671056000,-382.0,0.00032538,30]
[424219036,1780671056000,-684.0,0.00032538,30]
[424219037,1780671056000,-1604.0,0.00032538,30]
[424219038,1780671056000,-2221.0,0.00032538,30]
[424219041,1780671056000,-300.0,0.00032587,2]
[424219056,1780671056000,-500.0,0.00032603,10]
[424219069,1780671056000,-636.18712205,0.00032603,10]
[424219058,1780671056000,-1302.0,0.00032603,10]
[424219082,1780671056000,-1302.0,0.00032603,10]
[424219084,1780671056000,-300.0,0.00032603,14]
[424219080,1780671056000,-1302.0,0.00032603,10]
[424219081,1780671056000,-1302.0,0.00032603,10]
[424219086,1780671056000,-1302.0,0.00032603,10]
[424219090,1780671056000,-265.4971652,0.00032603,2]
[424219091,1780671056000,-150.0,0.00032603,10]
[424219087,1780671056000,-250.0,0.00032603,2]
[424219088,1780671056000,-250.0,0.00032603,2]
[424219089,1780671056000,-250.0,0.00032603,2]
[424219092,1780671056000,-1302.0,0.00032603,10]
[424219094,1780671056000,-1302.0,0.00032603,10]
[424219095,1780671056000,-1302.0,0.00032603,10]
[424219096,1780671056000,-1307.17433501,0.00032603,10]
[424219060,1780671056000,-500.0,0.00032603,10]
[424219083,1780671056000,-1302.0,0.00032603,10]
[424219078,1780671056000,-1302.0,0.00032603,10]
[424219093,1780671056000,-1302.0,0.00032603,10]
[424219085,1780671056000,-1302.0,0.00032603,10]
[424219061,1780671056000,-1302.0,0.00032603,10]
[424219079,1780671056000,-1302.0,0.00032603,10]
[424219064,1780671056000,-1302.0,0.00032603,10]
[424219063,1780671056000,-500.0,0.00032603,10]
[424219067,1780671056000,-150.0,0.00032603,10]
[424219065,1780671056000,-500.0,0.00032603,10]
[424219066,1780671056000,-500.0,0.00032603,10]
[424219070,1780671056000,-500.0,0.00032603,10]
[424219068,1780671056000,-1302.0,0.00032603,10]
[424219072,1780671056000,-1302.0,0.00032603,10]
[424219071,1780671056000,-150.0,0.00032603,10]
[424219073,1780671056000,-200.0,0.00032603,10]
[424219077,1780671056000,-150.0,0.00032603,2]
[424219074,1780671056000,-500.0,0.00032603,10]
[424219076,1780671056000,-638.22110894,0.00032603,10]
[424219075,1780671056000,-1302.0,0.00032603,10]
[424219121,1780671057000,-152.0,0.00032877,2]
[424219125,1780671057000,-1924.72,0.00032877,30]
[424219123,1780671057000,-630.0,0.00032877,10]
[424219124,1780671057000,-512.46,0.00032877,2]
[424219126,1780671057000,-382.0,0.00032892,2]
[424219127,1780671057000,-382.0,0.00032897,2]
[424219128,1780671057000,-2482.56772425,0.00032899,2]
[424219119,1780671057000,-200.0,0.00032877,2]
[424219129,1780671057000,-300.0,0.00032903,2]
[424219143,1780671057000,-169.62,0.0003299,3]
[424219134,1780671057000,-381.0,0.00032921,2]
[424219132,1780671057000,-272.31032,0.0003292,36]
[424219131,1780671057000,-272.31032,0.0003292,36]
[424219133,1780671057000,-272.31033,0.0003292,36]
[424219136,1780671057000,-382.0,0.00032947,2]
[424219145,1780671057000,-169.62,0.0003299,3]
[424219144,1780671057000,-169.62,0.0003299,3]
[424219118,1780671057000,-2000.0,0.00032876,10]
[424219130,1780671057000,-272.31032,0.0003292,36]
[424219120,1780671057000,-200.0,0.00032877,2]
[424219098,1780671057000,-500.0,0.00032603,10]
[424219111,1780671057000,-1000.0,0.00032749,14]
[424219141,1780671057000,-151.0,0.00032978,2]
[424219097,1780671057000,-216.97782793,0.00032603,10]
[424219101,1780671057000,-150.0,0.00032603,2]
[424219100,1780671057000,-270.39270819,0.00032603,10]
[424219099,1780671057000,-500.0,0.00032603,10]
[424219103,1780671057000,-151.0,0.0003265,4]
[424219102,1780671057000,-206.9214002,0.00032603,2]
[424219106,1780671057000,-300.0,0.00032706,2]
[424219108,1780671057000,-1000.0,0.00032722,14]
[424219109,1780671057000,-1000.0,0.00032727,14]
[424219104,1780671057000,-1000.0,0.00032692,14]
[424219107,1780671057000,-382.0,0.00032719,2]
[424219105,1780671057000,-300.0,0.00032697,2]
[424219110,1780671057000,-200.0,0.00032746,2]
[424219115,1780671057000,-1000.0,0.00032844,14]
[424219113,1780671057000,-300.0,0.00032802,2]
[424219116,1780671057000,-300.0,0.00032848,2]
[424219114,1780671057000,-152.0,0.00032828,3]
[424219112,1780671057000,-382.0,0.00032757,2]
[424219117,1780671057000,-381.0,0.00032857,2]
[424219142,1780671057000,-200.0,0.00032983,10]
[424219122,1780671057000,-1000.0,0.00032877,10]
[424219137,1780671057000,-381.0,0.0003295,2]
[424219162,1780671057000,-240.54220588,0.00033,120]
[424219168,1780671057000,-353.22116195,0.00033,120]
[424219166,1780671057000,-266.02175358,0.00033,120]
[424219165,1780671057000,-579.65091334,0.00033,120]
[424219171,1780671057000,-909.58,0.00033,30]
[424219170,1780671057000,-1672.887465,0.00033,8]
[424219181,1780671057000,-525.0,0.00033011,8]
[424219172,1780671057000,-1051.67,0.00033,14]
[424219173,1780671057000,-1239.18,0.00033,30]
[424219175,1780671057000,-2000.0,0.00033,7]
[424219176,1780671057000,-215.77576141,0.00033,3]
[424219177,1780671057000,-172.0,0.00033,14]
[424219178,1780671057000,-190.84078346,0.00033,120]
[424219179,1780671057000,-300.0,0.00033,2]
[424219180,1780671057000,-2000.0,0.0003301,8]
[424219183,1780671057000,-382.0,0.00033032,2]
[424219182,1780671057000,-154.61584994,0.00033025,13]
[424219184,1780671057000,-381.0,0.00033058,2]
[424219135,1780671057000,-382.0,0.00032939,2]
[424219164,1780671057000,-278.51312383,0.00033,120]
[424219167,1780671057000,-1327.85688603,0.00033,120]
[424219174,1780671057000,-301.0,0.00033,30]
[424219161,1780671057000,-1380.87818188,0.00033,120]
[424219140,1780671057000,-382.0,0.0003297,2]
[424219163,1780671057000,-860.34177745,0.00033,120]
[424219138,1780671057000,-158.69,0.0003295,7]
[424219139,1780671057000,-381.0,0.00032964,2]
[424219147,1780671057000,-430.3749138,0.00033,120]
[424219157,1780671057000,-820.72142025,0.00033,120]
[424219153,1780671057000,-1910.38886028,0.00033,120]
[424219154,1780671057000,-433.47194799,0.00033,120]
[424219146,1780671057000,-300.0,0.00032991,2]
[424219149,1780671057000,-311.41773744,0.00033,120]
[424219152,1780671057000,-1451.60412161,0.00033,120]
[424219151,1780671057000,-306.50544473,0.00033,120]
[424219148,1780671057000,-320.66968773,0.00033,120]
[424219156,1780671057000,-890.90734959,0.00033,120]
[424219155,1780671057000,-205.23463841,0.00033,120]
[424219169,1780671057000,-160.0,0.00033,8]
[424219159,1780671057000,-323.74083089,0.00033,120]
[424219185,1780671057000,-381.0,0.00033064,2]
[424219150,1780671057000,-515.14960472,0.00033,120]
[424219158,1780671057000,-441.83431517,0.00033,120]
[424219160,1780671057000,-1492.94465785,0.00033,120]
[424219209,1780671058000,-382.0,0.00033183,2]
[424219226,1780671058000,-152.0,0.00033226,30]
[424219224,1780671058000,-152.0,0.00033226,30]
[424219223,1780671058000,-2000.0,0.00033225,30]
[424219222,1780671058000,-381.0,0.00033225,2]
[424219217,1780671058000,-268.913379,0.000332,2]
[424219221,1780671058000,-382.0,0.00033221,2]
[424219220,1780671058000,-382.0,0.0003322,2]
[424219218,1780671058000,-180.55,0.000332,2]
[424219219,1780671058000,-350.0,0.00033213,6]
[424219225,1780671058000,-152.0,0.00033226,30]
[424219228,1780671058000,-164.9986118,0.00033226,30]
[424219241,1780671058000,-1548.0,0.00033226,30]
[424219232,1780671058000,-166.0,0.00033226,30]
[424219230,1780671058000,-166.0,0.00033226,30]
[424219229,1780671058000,-280.96199545,0.00033226,30]
[424219235,1780671058000,-1548.0,0.00033226,30]
[424219234,1780671058000,-1548.0,0.00033226,30]
[424219233,1780671058000,-166.0,0.00033226,30]
[424219237,1780671058000,-1548.0,0.00033226,30]
[424219236,1780671058000,-1548.0,0.00033226,30]
[424219244,1780671058000,-1548.0,0.00033226,30]
[424219238,1780671058000,-1548.0,0.00033226,30]
[424219210,1780671058000,-382.0,0.00033183,2]
[424219227,1780671058000,-153.62154626,0.00033226,30]
[424219212,1780671058000,-300.0,0.00033185,2]
[424219187,1780671058000,-300.0,0.00033094,2]
[424219216,1780671058000,-160.0,0.000332,2]
[424219192,1780671058000,-3553.0,0.00033121,2]
[424219193,1780671058000,-1357.0,0.00033121,2]
[424219194,1780671058000,-1273.0,0.00033121,2]
[424219186,1780671058000,-300.0,0.00033089,2]
[424219189,1780671058000,-381.0,0.00033105,2]
[424219188,1780671058000,-382.0,0.00033105,2]
[424219245,1780671058000,-1548.0,0.00033226,30]
[424219191,1780671058000,-381.0,0.00033116,2]
[424219190,1780671058000,-158.7,0.00033115,7]
[424219195,1780671058000,-933.0,0.00033121,2]
[424219197,1780671058000,-2000.0,0.00033122,120]
[424219198,1780671058000,-381.0,0.00033141,2]
[424219211,1780671058000,-381.0,0.00033184,2]
[424219196,1780671058000,-419.0,0.00033121,2]
[424219200,1780671058000,-381.0,0.00033145,2]
[424219201,1780671058000,-1000.0,0.00033157,30]
[424219205,1780671058000,-2000.0,0.00033172,7]
[424219202,1780671058000,-381.0,0.00033169,2]
[424219203,1780671058000,-1000.0,0.0003317,2]
[424219206,1780671058000,-381.0,0.00033173,2]
[424219204,1780671058000,-500.0,0.0003317,2]
[424219208,1780671058000,-1997.75,0.00033181,14]
[424219207,1780671058000,-382.0,0.00033175,2]
[424219213,1780671058000,-381.0,0.00033198,2]
[424219214,1780671058000,-160.0,0.000332,2]
[424219215,1780671058000,-160.0,0.000332,2]
[424219199,1780671058000,-264.78640974,0.00033142,2]
[424219239,1780671058000,-1548.0,0.00033226,30]
[424219231,1780671058000,-166.0,0.00033226,30]
[424219240,1780671058000,-1548.0,0.00033226,30]
[424219283,1780671058000,-151.0,0.00033226,30]
[424219282,1780671058000,-151.0,0.00033226,30]
[424219278,1780671058000,-151.0,0.00033226,30]
[424219281,1780671058000,-151.0,0.00033226,30]
[424219279,1780671058000,-151.0,0.00033226,30]
[424219277,1780671058000,-151.0,0.00033226,30]
[424219275,1780671058000,-152.0,0.00033226,30]
[424219276,1780671058000,-153.78606725,0.00033226,30]
[424219280,1780671058000,-151.0,0.00033226,30]
[424219284,1780671058000,-151.0,0.00033226,30]
[424219285,1780671058000,-151.0,0.00033226,30]
[424219293,1780671058000,-152.4991,0.00033226,2]
[424219296,1780671058000,-300.0,0.00033248,2]
[424219289,1780671058000,-151.0,0.00033226,30]
[424219287,1780671058000,-151.0,0.00033226,30]
[424219294,1780671058000,-381.0,0.00033237,2]
[424219292,1780671058000,-304.23217184,0.00033226,30]
[424219290,1780671058000,-181.16233663,0.00033226,30]
[424219295,1780671058000,-2000.0,0.00033246,14]
[424219288,1780671058000,-151.0,0.00033226,30]
[424219291,1780671058000,-155.0,0.00033226,30]
[424219297,1780671058000,-2000.0,0.00033249,2]
[424219299,1780671058000,-34367.08183102,0.0003325,2]
[424219298,1780671058000,-1121.85257231,0.00033249,30]
[424219243,1780671058000,-1548.0,0.00033226,30]
[424219272,1780671058000,-152.0,0.00033226,30]
[424219274,1780671058000,-152.0,0.00033226,30]
[424219286,1780671058000,-151.0,0.00033226,30]
[424219271,1780671058000,-152.0,0.00033226,30]
[424219242,1780671058000,-1548.0,0.00033226,30]
[424219273,1780671058000,-152.0,0.00033226,30]
[424219246,1780671058000,-1548.0,0.00033226,30]
[424219247,1780671058000,-1548.0,0.00033226,30]
[424219248,1780671058000,-1548.0,0.00033226,30]
[424219250,1780671058000,-1548.0,0.00033226,30]
[424219249,1780671058000,-1548.0,0.00033226,30]
[424219253,1780671058000,-1548.0,0.00033226,30]
[424219254,1780671058000,-1548.0,0.00033226,30]
[424219255,1780671058000,-1548.0,0.00033226,30]
[424219251,1780671058000,-1548.0,0.00033226,30]
[424219258,1780671058000,-1548.0,0.00033226,30]
[424219256,1780671058000,-1548.0,0.00033226,30]
[424219252,1780671058000,-1548.0,0.00033226,30]
[424219265,1780671058000,-240.0,0.00033226,30]
[424219268,1780671058000,-152.0,0.00033226,30]
[424219257,1780671058000,-1548.0,0.00033226,30]
[424219266,1780671058000,-152.0,0.00033226,30]
[424219264,1780671058000,-152.0,0.00033226,30]
[424219267,1780671058000,-152.0,0.00033226,30]
[424219261,1780671058000,-152.0,0.00033226,30]
[424219263,1780671058000,-152.0,0.00033226,30]
[424219269,1780671058000,-152.0,0.00033226,30]
[424219262,1780671058000,-152.0,0.00033226,30]
[424219260,1780671058000,-1547.0,0.00033226,30]
[424219259,1780671058000,-1548.0,0.00033226,30]
[424219270,1780671058000,-152.0,0.00033226,30]
[424219334,1780671059000,-3475.0,0.00033373,30]
[424219343,1780671059000,-168.23,0.00033444,7]
[424219342,1780671059000,-300.0,0.00033441,2]
[424219355,1780671059000,-150.335361,0.00033536,2]
[424219340,1780671059000,-461.0,0.00033382,30]
[424219330,1780671059000,-500.0,0.00033365,120]
[424219345,1780671059000,-350.0,0.00033464,5]
[424219335,1780671059000,-463.0,0.00033373,30]
[424219331,1780671059000,-1036.17,0.00033365,7]
[424219329,1780671059000,-500.0,0.00033365,120]
[424219337,1780671059000,-3786.0,0.00033373,30]
[424219336,1780671059000,-704.0,0.00033373,30]
[424219341,1780671059000,-1000.0,0.000334,120]
[424219353,1780671059000,-200.0,0.00033522,2]
[424219338,1780671059000,-917.0,0.00033382,30]
[424219339,1780671059000,-1918.0,0.00033382,30]
[424219347,1780671059000,-177.94557611,0.00033465,14]
[424219350,1780671059000,-500.0,0.000335,120]
[424219357,1780671059000,-717.0,0.00033538,30]
[424219346,1780671059000,-177.94557612,0.00033465,7]
[424219348,1780671059000,-382.56772426,0.00033484,2]
[424219349,1780671059000,-1235.04492495,0.000335,2]
[424219351,1780671059000,-382.56772425,0.00033517,2]
[424219356,1780671059000,-382.0,0.00033538,30]
[424219354,1780671059000,-300.0,0.00033523,2]
[424219332,1780671059000,-910.0,0.00033373,30]
[424219344,1780671059000,-500.0,0.00033462,14]
[424219328,1780671059000,-300.0,0.00033358,2]
[424219307,1780671059000,-272.31032,0.0003325,40]
[424219333,1780671059000,-535.0,0.00033373,30]
[424219300,1780671059000,-1003.169926,0.0003325,2]
[424219301,1780671059000,-10000.0,0.0003325,2]
[424219308,1780671059000,-152.0,0.0003325,2]
[424219303,1780671059000,-200.0,0.0003325,2]
[424219309,1780671059000,-1335.0,0.0003325,2]
[424219306,1780671059000,-272.31032,0.0003325,40]
[424219302,1780671059000,-352.529324,0.0003325,2]
[424219304,1780671059000,-151.0,0.0003325,2]
[424219305,1780671059000,-200.0,0.0003325,2]
[424219311,1780671059000,-1357.0,0.0003325,2]
[424219321,1780671059000,-1326.8934084,0.00033307,2]
[424219310,1780671059000,-404.0,0.0003325,2]
[424219325,1780671059000,-1300.0,0.00033356,60]
[424219313,1780671059000,-300.0,0.00033273,2]
[424219314,1780671059000,-162.36,0.00033279,7]
[424219317,1780671059000,-2160.35836683,0.00033287,2]
[424219315,1780671059000,-1319.93489087,0.00033287,2]
[424219319,1780671059000,-1062.07947252,0.00033287,2]
[424219316,1780671059000,-1705.76237562,0.00033287,2]
[424219320,1780671059000,-1977.82596253,0.00033287,2]
[424219318,1780671059000,-1865.69668222,0.00033287,2]
[424219323,1780671059000,-300.0,0.00033311,2]
[424219327,1780671059000,-500.0,0.00033356,60]
[424219324,1780671059000,-300.0,0.00033315,29]
[424219326,1780671059000,-500.0,0.00033356,60]
[424219322,1780671059000,-1118.40857051,0.00033307,2]
[424219312,1780671059000,-350.0,0.0003326,28]
[424219352,1780671059000,-531.31911348,0.00033522,2]
[424219370,1780671059000,-1278.48651852,0.00033629,2]
[424219366,1780671059000,-200.0,0.00033582,2]
[424219385,1780671059000,-320.66968773,0.000339,120]
[424219392,1780671059000,-205.23463841,0.000339,120]
[424219393,1780671059000,-890.90734959,0.000339,120]
[424219395,1780671059000,-441.83431517,0.000339,120]
[424219397,1780671059000,-1492.94465785,0.000339,120]
[424219398,1780671059000,-1380.87818188,0.000339,120]
[424219400,1780671059000,-278.51312383,0.000339,120]
[424219403,1780671059000,-266.02175358,0.000339,120]
[424219394,1780671059000,-820.72142025,0.000339,120]
[424219402,1780671059000,-579.65091334,0.000339,120]
[424219399,1780671059000,-240.54220588,0.000339,120]
[424219396,1780671059000,-323.74083089,0.000339,120]
[424219391,1780671059000,-433.47194799,0.000339,120]
[424219405,1780671059000,-353.22116195,0.000339,120]
[424219406,1780671059000,-190.84078346,0.000339,120]
[424219415,1780671059000,-500.0,0.00034,7]
[424219404,1780671059000,-1327.85688603,0.000339,120]
[424219414,1780671059000,-500.0,0.00034,7]
[424219407,1780671059000,-200.0,0.00033918,2]
[424219408,1780671059000,-200.0,0.00033918,2]
[424219410,1780671059000,-150.0,0.00033973,10]
[424219409,1780671059000,-300.0,0.00033973,14]
[424219411,1780671059000,-500.0,0.00033978,120]
[424219412,1780671059000,-216.870631,0.00034,11]
[424219416,1780671059000,-500.0,0.00034,7]
[424219363,1780671059000,-183.60827665,0.00033555,12]
[424219413,1780671059000,-382.537957,0.00034,11]
[424219383,1780671059000,-220.66681,0.00033857,10]
[424219401,1780671059000,-860.34177745,0.000339,120]
[424219381,1780671059000,-151.0,0.000338,2]
[424219389,1780671059000,-1451.60412161,0.000339,120]
[424219362,1780671059000,-525.0,0.00033545,9]
[424219360,1780671059000,-2221.0,0.00033538,30]
[424219361,1780671059000,-350.0,0.00033538,6]
[424219358,1780671059000,-684.0,0.00033538,30]
[424219364,1780671059000,-300.0,0.00033577,2]
[424219368,1780671059000,-1051.67,0.000336,14]
[424219359,1780671059000,-1604.0,0.00033538,30]
[424219365,1780671059000,-200.0,0.00033582,2]
[424219369,1780671059000,-170.59,0.00033609,7]
[424219372,1780671059000,-1206.8420824,0.0003364,2]
[424219371,1780671059000,-1187.83383474,0.0003364,2]
[424219375,1780671059000,-12898.39,0.00033647,30]